bitfinex-derivatives/quotes_ETHF0:USTF0_20240817
["timestamp","ask_amount","ask_price","bid_price","bid_amount"]
[1723860936940,0.7066,2603.0,2602.8,5.22067454]
[1723860937438,0.7066,2603.0,2602.8,4.22030195]
[1723860937633,0.7066,2603.0,2602.8,6.14067195]
[1723860937831,0.7066,2603.0,2602.8,7.14104454]
[1723860938137,0.7066,2603.0,2602.8,5.22067454]
[1723860938535,0.7066,2603.0,2602.8,7.14105454]
[1723860938931,0.7066,2603.0,2602.8,5.22067454]
[1723860939636,0.7066,2603.0,2602.8,7.14106454]
[1723860940042,0.7066,2603.0,2602.9,0.60598016]
[1723860940339,0.7066,2603.0,2602.9,3.52668275]
[1723860941537,0.7066,2603.0,2602.9,1.00037259]
[1723860941735,0.7066,2603.0,2602.7,1.50055889]
[1723860941736,0.7066,2603.0,2602.8,1.00037259]
[1723860941932,0.7066,2603.0,2602.8,2.92076259]
[1723860942144,0.7066,2603.0,2602.9,1.92033]
[1723860942345,0.7066,2603.0,2602.9,3.52668154]
[1723860944053,0.7066,2603.0,2602.9,1.60635154]
[1723860944650,0.7066,2603.0,2602.9,3.52668154]
[1723860946153,0.3499,2603.0,2602.9,7.36828154]
[1723860946361,0.36530493,2603.4,2603.3,1.92003]
[1723860946651,0.36530493,2603.4,2603.3,11.3877044]
[1723860946652,0.00340493,2603.4,2603.3,11.3877044]
[1723860946858,0.00340493,2603.4,2603.3,11.7548044]
[1723860947652,0.72310493,2603.4,2603.3,5.93590524]
[1723860947851,1.82910493,2603.4,2603.3,5.93590524]
[1723860948051,1.82910493,2603.4,2603.3,11.38792012]
[1723860949156,1.82910493,2603.4,2603.3,13.30807074]
[1723860949349,1.10940493,2603.4,2603.3,13.80440942]
[1723860949651,0.00340493,2603.4,2603.3,13.80440942]
[1723860950253,0.00340493,2603.4,2603.3,9.46793168]
[1723860950451,0.00340493,2603.4,2603.3,1.00426177]
[1723860950754,0.00340493,2603.4,2603.3,1.61044617]
[1723860951059,0.00340493,2603.4,2603.3,2.92429177]
[1723860951253,0.00340493,2603.4,2603.3,1.61044756]
[1723860951458,0.00340493,2603.4,2603.3,1.00426177]
[1723860951660,0.00340493,2603.4,2603.3,1.61044889]
[1723860951855,0.00340493,2603.4,2603.3,1.00426177]
[1723860952050,0.00340493,2603.4,2603.2,2.92432177]
[1723860952253,0.00340493,2603.4,2603.3,1.92003]
[1723860952862,0.00340493,2603.4,2603.2,1.00426177]
[1723860953160,1.92341493,2603.4,2603.1,1.00426177]
[1723860953365,0.3643,2603.3,2603.1,1.00426177]
[1723860953558,0.7294,2603.3,2603.1,2.92443177]
[1723860954359,0.7294,2603.3,2603.1,1.00426177]
[1723860954865,0.7294,2603.3,2603.1,2.92444177]
[1723860955359,0.7294,2603.3,2603.2,1.00426177]
[1723860955360,0.3651,2603.3,2603.2,1.00426177]
[1723860955561,0.3651,2603.3,2603.2,1.61027155]
[1723860956367,0.00340493,2603.4,2603.2,3.53038155]
[1723860956563,0.00340493,2603.4,2603.2,1.00426177]
[1723860956762,1.92337493,2603.4,2603.2,1.00426177]
[1723860957167,1.92337493,2603.4,2603.3,0.60598707]
[1723860957365,1.92337493,2603.4,2603.3,1.61024884]
[1723860958856,0.00340493,2603.4,2603.3,1.61024884]
[1723860959063,0.00340493,2603.4,2603.3,4.02682402]
[1723860959366,0.00340493,2603.4,2603.3,3.42083695]
[1723860959562,0.00340493,2603.4,2603.3,5.94669482]
[1723860959763,0.00340493,2603.4,2603.3,13.75892136]
[1723860960067,0.00340493,2603.4,2603.3,15.75966655]
[1723860960269,0.00340493,2603.4,2603.3,15.75953327]
[1723860960964,0.00576136,2603.6,2603.3,15.75953327]
[1723860960965,0.00576136,2603.6,2603.5,1.91989]
[1723860961165,0.00576136,2603.6,2603.5,11.26366063]
[1723860961362,0.00576136,2603.6,2603.5,15.47997418]
[1723860961666,0.7149,2604.1,2604.0,1.91952]
[1723860961867,0.36190541,2604.1,2604.0,5.4498774]
[1723860962069,0.36190541,2604.1,2604.0,5.95174201]
[1723860963463,0.36190541,2604.1,2604.0,4.03178511]
[1723860963665,2.28134541,2604.1,2604.0,1.6091099]
[1723860963862,0.36190541,2604.1,2604.0,0.60545275]
[1723860964061,0.36190541,2604.1,2603.9,1.37405715]
[1723860964870,0.71100541,2604.1,2603.9,3.29364715]
[1723860967665,0.71100541,2604.1,2603.9,2.28999]
[1723860967867,0.71100541,2604.1,2603.9,3.29364715]
[1723860968572,0.71100541,2604.1,2603.9,2.28999]
[1723860969173,2.63046541,2604.1,2603.9,0.3704]
[1723860969971,0.71100541,2604.1,2603.9,0.3704]
[1723860970972,2.63045541,2604.1,2603.9,0.3704]
[1723860971473,0.71100541,2604.1,2603.9,2.28998]
[1723860971679,0.71100541,2604.1,2603.9,0.3704]
[1723860972479,0.71100541,2604.1,2603.9,2.28999]
[1723860972975,0.71100541,2604.1,2603.9,0.3704]
[1723860974777,0.71100541,2604.1,2603.9,2.28999]
[1723860975183,0.71100541,2604.1,2604.0,1.91952]
[1723860975470,0.00290541,2604.1,2604.0,0.3712]
[1723860975680,0.00290541,2604.1,2603.8,0.00576136]
[1723860975976,3.02559,2603.9,2603.8,0.00576136]
[1723860976368,8.78598,2603.9,2603.8,0.00576136]
[1723860976571,9.13048,2603.9,2603.8,0.00576136]
[1723860977968,15.67948,2603.9,2603.8,0.00576136]
[1723860978272,15.67948,2603.9,2603.1,5.18818543]
[1723860978273,1.91999,2603.4,2603.1,4.59254727]
[1723860978477,0.3445,2603.3,2603.1,2.67243251]
[1723860978671,0.3445,2603.3,2603.2,4.37127378]
[1723860978672,0.02101879,2603.3,2603.2,4.37127378]
[1723860980170,1.94104879,2603.3,2603.2,4.37127378]
[1723860980366,1.94104879,2603.3,2603.0,0.00576136]
[1723860980367,5.78264879,2603.3,2603.0,0.00576136]
[1723860980576,1.94104879,2603.3,2603.0,0.00576136]
[1723860981678,1.92011,2603.2,2603.0,0.00576136]
[1723860982177,1.94107879,2603.3,2603.0,0.00576136]
[1723860982374,5.12794,2603.2,2603.0,0.00576136]
[1723860983476,1.92018,2603.1,2603.0,0.00576136]
[1723860983776,1.92055,2602.6,2602.5,0.60565783]
[1723860983982,1.92055,2602.6,2602.3,0.00386263]
[1723860984178,3.2078,2602.7,2602.3,0.00386263]
[1723860984179,2.64984,2602.5,2602.3,0.00386263]
[1723860984377,0.7292,2602.5,2602.3,0.00386263]
[1723860986773,2.64984,2602.5,2602.3,0.00386263]
[1723860986975,1.9207,2602.4,2602.3,0.00386263]
[1723860987482,5.7631,2602.4,2602.3,0.00386263]
[1723860988475,1.9207,2602.4,2602.3,0.00386263]
[1723860989280,5.7631,2602.4,2602.3,0.00386263]
[1723860990385,1.9207,2602.4,2602.3,0.00386263]
[1723860990887,2.29116,2602.5,2602.3,0.00386263]
[1723860991080,1.9207,2602.4,2602.3,0.00386263]
[1723860991984,5.7631,2602.4,2602.3,0.00386263]
[1723860992393,1.9207,2602.4,2602.3,0.00386263]
[1723860992579,5.7631,2602.4,2602.3,0.00386263]
[1723860993186,1.9207,2602.4,2602.3,0.00386263]
[1723860997889,3.0277,2602.4,2602.3,0.00386263]
[1723860998583,6.8701,2602.4,2602.3,0.00386263]
[1723861000384,3.0277,2602.4,2602.3,0.00386263]
[1723861000992,3.3702,2602.4,2602.3,0.00386263]
[1723861001890,3.3702,2602.4,2602.1,0.00576136]
[1723861001891,1.92085,2602.2,2602.1,0.00576136]
[1723861002198,6.23565,2602.2,2602.1,0.00576136]
[1723861002894,6.23961736,2602.2,2602.1,0.00916097]
[1723861003195,5.13261736,2602.2,2602.1,0.00916097]
[1723861004191,1.92481736,2602.2,2602.1,0.00916097]
[1723861004695,0.00396736,2602.2,2602.1,0.00916097]
[1723861005000,0.36096736,2602.2,2602.1,0.00916097]
[1723861005595,2.28181736,2602.2,2602.1,0.00916097]
[1723861006685,1.92103,2602.0,2601.7,0.3564]
[1723861006887,3.02804,2602.0,2601.7,0.3564]
[1723861007094,0.3723,2601.9,2601.7,0.3564]
[1723861007289,0.3723,2601.9,2601.7,2.27761]
[1723861007485,3.2078,2601.8,2601.7,2.27761]
[1723861007799,3.2078,2601.8,2601.7,0.36073238]
[1723861009801,0.3723,2601.9,2601.7,0.36073238]
[1723861010003,3.2078,2601.8,2601.7,1.46773238]
[1723861010502,3.2078,2601.8,2601.7,0.00433238]
[1723861010701,4.6879,2601.8,2601.7,0.00433238]
[1723861010891,1.92131,2601.6,2601.3,0.3438]
[1723861011093,1.107,2601.6,2601.3,0.3438]
[1723861011296,1.107,2601.6,2601.4,4.31001324]
[1723861011497,3.0283,2601.6,2601.4,4.31001324]
[1723861011696,1.92136,2601.5,2601.4,4.31001324]
[1723861012004,0.3741,2601.5,2601.4,4.31370667]
[1723861012999,3.2078,2601.8,2601.7,1.92121]
[1723861013200,1.92102,2602.0,2601.7,1.107]
[1723861013409,1.107,2602.1,2601.7,5.13911596]
[1723861013600,2.26404,2602.0,2601.7,5.13911596]
[1723861013902,0.343,2602.0,2601.7,5.48961596]
[1723861014294,0.343,2602.0,2601.7,7.41080596]
[1723861014602,0.343,2602.0,2601.8,1.92113]
[1723861014996,0.343,2602.0,2601.9,4.31228583]
[1723861015999,2.26399,2602.0,2601.9,4.31228583]
[1723861016315,3.37099,2602.0,2601.7,2.27167]
[1723861016496,1.92108,2601.9,2601.7,0.3505]
[1723861017391,3.37104,2602.0,2601.7,2.27171]
[1723861018498,1.92107,2601.9,2601.7,2.27171]
[1723861018896,1.92107,2601.9,2601.7,0.3505]
[1723861019204,0.3587,2601.8,2601.7,0.3505]
[1723861019397,0.7073,2601.8,2601.7,0.3505]
[1723861020199,6.47164,2601.8,2601.5,1.92132]
[1723861020503,2.62844,2601.8,2601.5,1.92132]
[1723861021196,1.92136,2601.5,2601.4,0.00369343]
[1723861021398,3.02836,2601.5,2601.4,0.00369343]
[1723861021596,10.45706,2601.5,2601.4,0.00369343]
[1723861023403,0.3769,2601.5,2601.4,0.00369343]
[1723861023707,1.107,2601.6,2601.4,1.92513343]
[1723861023894,1.107,2601.6,2601.4,0.74669343]
[1723861024304,1.107,2601.6,2601.4,2.66808343]
[1723861024508,1.107,2601.6,2601.5,1.92136]
[1723861024710,1.92124,2601.7,2601.4,0.74669343]
[1723861024711,1.107,2601.7,2601.4,0.74669343]
[1723861024908,1.107,2601.7,2601.6,1.92129]
[1723861025104,1.107,2601.7,2601.5,1.92131]
[1723861025403,1.107,2601.6,2601.5,1.92131]
[1723861025900,1.107,2601.6,2601.4,0.37969343]
[1723861025901,3.02834,2601.6,2601.4,0.37969343]
[1723861026106,1.107,2601.5,2601.4,0.37969343]
[1723861027604,1.107,2601.5,2601.4,2.30113343]
[1723861028004,1.107,2601.6,2601.4,2.30113343]
[1723861028314,1.107,2601.6,2601.5,1.92136]
[1723861029108,0.7073,2601.8,2601.5,1.107]
[1723861029317,3.38572,2601.9,2601.7,1.92121]
[1723861029613,3.38572,2601.9,2601.8,0.3687]
[1723861030012,1.4646,2601.9,2601.6,0.3744]
[1723861030207,1.107,2601.7,2601.6,0.3687]
[1723861030612,3.02821,2601.7,2601.6,0.3687]
[1723861030917,1.107,2601.7,2601.6,2.28999]
[1723861031111,1.107,2601.7,2601.6,0.3687]
[1723861031318,3.02821,2601.7,2601.6,0.3687]
[1723861031615,3.74451,2601.7,2601.6,0.3687]
[1723861032116,3.74451,2601.7,2601.6,0.3287]
[1723861034315,1.92129,2601.6,2601.4,1.92509343]
[1723861034615,0.3513,2601.5,2601.4,1.92509343]
[1723861035312,0.3513,2601.5,2601.4,2.26799343]
[1723861036115,0.7163,2601.7,2601.5,1.92136]
[1723861036116,1.8233,2601.7,2601.5,1.92136]
[1723861037113,3.74452,2601.7,2601.5,1.92136]
[1723861039520,3.2078,2601.8,2601.7,1.92121]
[1723861039722,0.00396736,2602.2,2602.1,1.92092]
[1723861039927,0.00396736,2602.2,2602.1,3.02792]
[1723861040110,0.00396736,2602.2,2602.1,7.5375508]
[1723861040315,0.00396736,2602.2,2602.1,10.96511588]
[1723861040724,0.00576136,2602.7,2602.1,14.4584914]
[1723861040922,0.00576136,2602.7,2602.6,2.92528141]
[1723861041127,0.00576136,2602.7,2602.6,7.65570321]
[1723861041426,0.00576136,2602.7,2602.6,17.48115339]
[1723861041721,0.00923879,2602.7,2602.6,17.48121693]
[1723861041933,0.00923879,2602.7,2602.6,16.47735747]
[1723861042226,0.00923879,2602.7,2602.6,17.98445459]
[1723861042527,0.00923879,2602.7,2602.6,12.35204098]
[1723861042929,0.00923879,2602.7,2602.6,12.35205921]
[1723861043320,0.00923879,2602.7,2602.6,11.74598733]
[1723861044420,0.00923879,2602.7,2602.6,10.74256322]
[1723861044829,0.00923879,2602.7,2602.6,8.45261322]
[1723861045025,1.92971879,2602.7,2602.4,1.00342411]
[1723861045325,1.92971879,2602.7,2602.5,4.07946842]
[1723861045517,1.92055,2602.6,2602.5,4.07946842]
[1723861045715,1.92055,2602.6,2602.4,4.07276997]
[1723861045927,0.00923879,2602.7,2602.2,3.64256411]
[1723861045928,0.3463,2602.5,2602.3,1.92076]
[1723861046136,0.3463,2602.5,2602.3,5.99352997]
[1723861046339,0.3463,2602.5,2602.3,1.92076]
[1723861047037,0.3463,2602.5,2602.3,1.92077]
[1723861047241,1.92971879,2602.7,2602.3,1.92073]
[1723861047936,1.92974879,2602.7,2602.3,1.92074]
[1723861049144,2.29575,2602.6,2602.3,1.92074]
[1723861049346,0.3752,2602.6,2602.2,0.7183]
[1723861049645,1.92071,2602.4,2602.0,10.50874]
[1723861050932,1.92091,2602.2,2602.0,8.5878]
[1723861051231,3.2078,2602.4,2601.8,0.7246]
[1723861051432,1.92103,2602.0,2601.8,0.364]
[1723861052239,0.3665,2602.1,2601.5,3.62832411]
[1723861052240,1.92107,2601.9,2601.5,3.62832411]
[1723861052442,2.28783,2602.0,2601.6,1.92129]
[1723861052643,2.28783,2602.0,2601.6,6.3567873]
[1723861053246,1.92107,2601.9,2601.6,4.4354973]
[1723861053847,3.9409,2602.0,2601.6,4.4354973]
[1723861054038,1.92121,2601.7,2601.4,5.13290343]
[1723861055938,1.9213,2601.6,2601.4,0.00369343]
[1723861056140,1.92136,2601.5,2601.4,0.00369343]
[1723861056334,2.29246,2601.5,2601.4,0.00369343]
[1723861056731,6.13646,2601.5,2601.4,0.00369343]
[1723861068350,2.29246,2601.5,2601.4,0.00369343]
[1723861068554,6.13646,2601.5,2601.4,0.00369343]
[1723861069247,9.34426,2601.5,2601.4,0.00369343]
[1723861072854,9.70686,2601.5,2601.4,0.00369343]
[1723861074846,5.86286,2601.5,2601.4,0.00369343]
[1723861075455,9.70686,2601.5,2601.4,0.00369343]
[1723861075652,5.86286,2601.5,2601.4,0.00369343]
[1723861075849,9.70686,2601.5,2601.4,0.00369343]
[1723861076451,5.86286,2601.5,2601.4,0.00369343]
[1723861076648,6.49906,2601.5,2601.4,0.00369343]
[1723861076851,3.2078,2601.5,2601.4,0.00369343]
[1723861077055,5.12916,2601.5,2601.4,0.00369343]
[1723861077958,6.23616,2601.5,2601.4,0.00369343]
[1723861082467,5.12916,2601.5,2601.4,0.00369343]
[1723861082662,6.23616,2601.5,2601.4,0.00369343]
[1723861088868,7.33406,2601.5,2601.4,0.00369343]
[1723861089455,11.17806,2601.5,2601.4,0.00369343]
[1723861090765,14.2567,2601.5,2600.6,1.00342411]
[1723861090971,3.02888,2600.8,2600.7,0.7415]
[1723861091662,3.0329636,2600.8,2600.7,0.74425318]
[1723861093862,1.1110836,2600.8,2600.7,0.74425318]
[1723861094361,0.0040836,2600.8,2600.7,3.77320318]
[1723861094562,1.92163,2601.2,2600.9,1.92175]
[1723861094767,1.92163,2601.2,2601.0,3.37443]
[1723861095071,1.92163,2601.2,2601.1,0.7132]
[1723861095570,3.03302212,2601.2,2601.1,0.7132]
[1723861095772,1.11139212,2601.2,2600.8,1.00509624]
[1723861095959,1.92183,2600.9,2600.7,3.63096942]
[1723861096365,1.92183,2600.9,2600.8,0.60665323]
[1723861096569,3.2078,2601.0,2600.8,3.53362947]
[1723861096570,5.12957,2601.0,2600.8,3.53362947]
[1723861096867,5.12957,2601.0,2600.9,1.00509624]
[1723861097365,5.12957,2601.0,2600.9,1.61173479]
[1723861097565,0.00439212,2601.2,2601.0,1.92173]
[1723861097771,1.92601212,2601.2,2601.1,0.3444]
[1723861097966,0.00439212,2601.2,2601.1,8.07178644]
[1723861098273,0.00439212,2601.2,2601.1,10.49427211]
[1723861098665,0.00439212,2601.2,2601.1,8.98717499]
[1723861098868,0.00439212,2601.2,2601.1,10.49727831]
[1723861099266,0.00439212,2601.2,2601.1,11.46565928]
[1723861099469,0.00439212,2601.2,2601.1,9.95555596]
[1723861101274,0.00439212,2601.2,2601.1,8.03364075]
[1723861101570,0.00439212,2601.2,2601.1,11.96434302]
[1723861102167,0.00439212,2601.2,2601.1,11.96433177]
[1723861103377,0.00439212,2601.2,2601.1,6.11069913]
[1723861103577,0.00439212,2601.2,2601.1,11.96433177]
[1723861104077,0.00439212,2601.2,2601.1,8.11953177]
[1723861104274,0.00439212,2601.2,2601.1,9.95549913]
[1723861104666,0.00439212,2601.2,2601.1,4.73204169]
[1723861104870,0.00439212,2601.2,2601.1,2.26719806]
[1723861105071,1.92597212,2601.2,2601.1,2.52853322]
[1723861105468,3.03577212,2601.2,2601.1,2.52853322]
[1723861105668,3.03577212,2601.2,2601.1,2.92958946]
[1723861105972,3.03577212,2601.2,2601.1,1.61427469]
[1723861106169,3.03577212,2601.2,2601.1,4.04014654]
[1723861106782,3.03577212,2601.2,2601.1,3.43351482]
[1723861107076,3.03577212,2601.2,2601.1,2.52866456]
[1723861107279,3.03577212,2601.2,2601.1,1.92203919]
[1723861107481,3.03577212,2601.2,2601.1,4.04014138]
[1723861108577,3.03577212,2601.2,2601.1,2.52866575]
[1723861109075,3.03577212,2601.2,2601.1,3.53628539]
[1723861109382,3.03577212,2601.2,2601.1,1.6142462]
[1723861109584,3.03577212,2601.2,2601.1,1.61425564]
[1723861109773,3.03577212,2601.2,2601.1,3.53634598]
[1723861110075,3.03577212,2601.2,2601.1,4.04020197]
[1723861110279,3.03577212,2601.2,2601.1,3.53634122]
[1723861110474,3.03577212,2601.2,2601.1,1.61425088]
[1723861110676,6.88057212,2601.2,2601.1,1.61425088]
[1723861111480,6.88057212,2601.2,2601.1,1.614252]
[1723861111677,8.80215212,2601.2,2601.1,0.60663712]
[1723861111880,1.92166,2601.1,2600.8,1.00761488]
[1723861112085,5.1296,2600.9,2600.8,1.00761488]
[1723861112382,5.1296,2600.9,2600.8,3.53661444]
[1723861113080,5.1296,2600.9,2600.8,3.53653386]
[1723861113469,5.1296,2600.9,2600.8,2.52899956]
[1723861113873,5.1296,2600.9,2600.8,3.53639898]
[1723861114177,5.1296,2600.9,2600.8,1.922314]
[1723861114384,1.9218,2600.9,2600.8,4.38844932]
[1723861114882,1.92178,2601.0,2600.8,4.38844932]
[1723861115077,1.92178,2601.0,2600.9,3.53622847]
[1723861115382,1.92178,2601.0,2600.9,3.53604803]
[1723861115584,1.92178,2601.0,2600.9,1.61391447]
[1723861116288,1.92178,2601.0,2600.9,3.5360605]
[1723861116476,1.92178,2601.0,2600.9,3.53604232]
[1723861116784,1.92178,2601.0,2600.9,1.61391447]
[1723861117583,1.92178,2601.0,2600.9,3.5360605]
[1723861117779,1.92178,2601.0,2600.9,1.61391447]
[1723861117986,1.92178,2601.0,2600.9,3.53605859]
[1723861118484,1.92181,2600.9,2600.8,1.35525478]
[1723861118784,1.92181,2600.9,2600.8,2.87687037]
[1723861118985,1.92181,2600.9,2600.8,3.88405666]
[1723861119375,1.92181,2600.9,2600.8,1.9618485]
[1723861120287,1.92181,2600.9,2600.8,1.6138485]
[1723861120487,1.92181,2600.9,2600.8,1.61385795]
[1723861120983,1.92181,2600.9,2600.8,0.6066715]
[1723861121287,1.92188,2600.8,2600.7,1.00993947]
[1723861121478,2.64088,2600.8,2600.7,1.61661682]
[1723861121679,2.64088,2600.8,2600.7,3.53888883]
[1723861122186,2.64088,2600.8,2600.7,1.61661682]
[1723861122885,2.64088,2600.8,2600.7,3.53890248]
[1723861123079,2.64088,2600.8,2600.7,1.61661682]
[1723861124282,2.64088,2600.8,2600.7,0.60943053]
[1723861124579,2.64088,2600.8,2600.7,1.61663703]
[1723861124580,5.84868,2600.8,2600.7,1.61663703]
[1723861125984,6.95568,2600.8,2600.7,1.61663703]
[1723861129983,6.95568,2600.8,2600.7,0.00275318]
[1723861131192,6.95568,2600.8,2600.7,1.61662518]
[1723861131393,6.95568,2600.8,2600.7,0.00275318]
[1723861132189,6.95568,2600.8,2600.7,0.60944351]
[1723861132396,6.95568,2600.8,2600.7,0.00275318]
[1723861132985,12.72236,2600.8,2600.7,0.00275318]
[1723861137488,3.2078,2600.8,2600.7,0.00275318]
[1723861137691,3.2078,2600.8,2600.7,3.99838947]
[1723861137993,3.2078,2600.8,2600.7,10.47181154]
[1723861138292,2.63117348,2600.8,2600.7,21.3401766]
[1723861138684,2.63117348,2600.8,2600.7,19.82870097]
[1723861140093,2.63117348,2600.8,2600.7,18.72170097]
[1723861140591,0.00439212,2601.2,2601.0,1.92171]
[1723861140794,0.00439212,2601.2,2601.1,0.3578]
[1723861141183,1.92597212,2601.2,2601.1,0.3578]
[1723861142190,1.92177,2601.0,2600.8,1.00607493]
[1723861142384,1.92188,2600.8,2600.7,1.00882811]
[1723861142588,1.92188,2600.8,2600.7,0.00275318]
[1723861142986,2.28258,2600.8,2600.7,0.00275318]
[1723861143697,6.12738,2600.8,2600.7,0.00275318]
[1723861145396,8.04926,2600.8,2600.7,0.00275318]
[1723861147784,6.12738,2600.8,2600.7,0.00275318]
[1723861154614,2.28258,2600.8,2600.7,0.00275318]
[1723861155289,6.12738,2600.8,2600.7,0.00275318]
[1723861155494,8.04926,2600.8,2600.7,0.00275318]
[1723861156002,6.12738,2600.8,2600.7,0.00275318]
[1723861156194,8.04926,2600.8,2600.7,0.00275318]
[1723861156703,6.12738,2600.8,2600.7,0.00275318]
[1723861156998,1.92188,2600.8,2600.7,0.00275318]
[1723861161696,5.76668,2600.8,2600.7,0.00275318]
[1723861162497,7.68856,2600.8,2600.7,0.00275318]
[1723861163908,8.79556,2600.8,2600.7,0.00275318]
[1723861164306,1.92203,2600.6,2600.3,1.00607493]
[1723861164608,5.12997,2600.4,2600.3,1.00607493]
[1723861164905,5.12997,2600.4,2600.2,1.35067493]
[1723861165205,3.02925,2600.3,2600.2,0.3446]
[1723861165407,3.02925,2600.3,2600.2,1.61727822]
[1723861165598,9.1442,2600.3,2600.2,0.00326886]
[1723861166508,9.25012576,2600.3,2600.2,0.00326886]
[1723861168006,10.80112576,2600.3,2600.2,0.00326886]
[1723861168304,15.80112576,2600.3,2600.2,0.00326886]
[1723861168708,1.92243,2600.1,2599.7,1.00724751]
[1723861168914,1.92267,2599.8,2599.6,1.36564751]
[1723861169813,1.92267,2599.8,2599.6,1.36847489]
[1723861170315,1.92267,2599.8,2599.6,0.36122738]
[1723861170711,1.92267,2599.8,2599.6,0.00282738]
[1723861171014,2.02861418,2599.7,2599.6,0.00282738]
[1723861171314,7.79770418,2599.7,2599.6,0.00282738]
[1723861171610,8.15440135,2599.7,2599.6,0.00282738]
[1723861171815,1.92291,2599.4,2599.3,0.3572]
[1723861172012,5.23663135,2599.4,2599.3,0.3572]
[1723861172210,3.31372135,2599.4,2598.8,1.00724751]
[1723861172417,3.31372135,2599.4,2598.9,0.3572]
[1723861172418,1.92317,2599.1,2598.9,0.3572]
[1723861172619,1.9231,2599.2,2598.9,0.3572]
[1723861172803,0.00318674,2599.1,2598.9,0.36130973]
[1723861173009,1.92321,2599.0,2598.9,0.36130973]
[1723861174804,0.00318674,2599.1,2598.9,2.28454973]
[1723861175010,0.00318674,2599.1,2598.9,0.36130973]
[1723861175609,0.00318674,2599.1,2598.9,2.28458973]
[1723861176515,0.00318674,2599.1,2599.0,1.92321]
[1723861176714,0.00318674,2599.1,2598.9,2.28456973]
[1723861177617,0.00318674,2599.1,2599.0,1.92321]
[1723861177821,0.00318674,2599.1,2598.9,0.36130973]
[1723861178120,0.00318674,2599.1,2599.0,1.92321]
[1723861178525,0.00318674,2599.1,2599.0,5.77041]
[1723861178711,0.00318674,2599.1,2599.0,3.8472]
[1723861179021,0.00318674,2599.1,2599.0,5.77041]
[1723861179320,0.00318674,2599.1,2599.0,3.8472]
[1723861179712,0.00318674,2599.1,2599.0,5.77041]
[1723861180013,0.00318674,2599.1,2598.9,2.28456973]
[1723861180212,0.00318674,2599.1,2599.0,0.3457]
[1723861180512,0.00318674,2599.1,2599.0,2.26891]
[1723861181921,0.00318674,2599.1,2599.0,0.3457]
[1723861182519,0.00318674,2599.1,2599.0,6.11611]
[1723861190415,3.2078,2599.7,2599.0,14.32391]
[1723861190617,2.27125,2599.8,2599.3,3.2078]
[1723861190819,2.27125,2599.8,2599.5,1.92279]
[1723861191623,2.27575377,2599.8,2599.5,1.92279]
[1723861192017,2.27575377,2599.8,2599.4,2.98605]
[1723861193317,1.92715377,2599.8,2599.4,2.98605]
[1723861193513,0.00450377,2599.8,2599.4,1.0632]
[1723861193722,0.00450377,2599.8,2599.7,1.92269]
[1723861194024,0.00450377,2599.8,2599.6,1.92272]
[1723861194423,0.00450377,2599.8,2599.7,1.92269]
[1723861195025,0.00450377,2599.8,2599.6,1.92272]
[1723861195213,0.00450377,2599.8,2599.5,1.92278]
[1723861195413,0.00450377,2599.8,2599.5,5.9231391]
[1723861195629,0.00450377,2599.8,2599.5,1.92278]
[1723861196724,0.74140377,2599.8,2599.5,1.92278]
[1723861197022,2.66403377,2599.8,2599.4,1.0632]
[1723861197422,0.74140377,2599.8,2599.6,1.92276]
[1723861198013,2.66402377,2599.8,2599.6,1.92276]
[1723861198216,0.38000377,2599.8,2599.7,1.92269]
[1723861198421,0.00450377,2599.8,2599.7,1.92269]
[1723861201626,1.92712377,2599.8,2599.5,1.92279]
[1723861201828,1.92279,2599.6,2599.4,1.0632]
[1723861202129,1.92279,2599.6,2599.5,8.15362284]
[1723861202325,1.92279,2599.6,2599.5,4.30642284]
[1723861202526,1.92279,2599.6,2599.4,2.98608]
[1723861202831,1.92284,2599.5,2599.4,1.0632]
[1723861203032,0.3709,2599.6,2599.4,1.0632]
[1723861203222,2.62793,2599.7,2599.5,1.92284]
[1723861203923,0.37540377,2599.8,2599.4,1.0632]
[1723861204228,2.29802377,2599.8,2599.6,1.92273]
[1723861204419,0.3597,2599.7,2599.5,6.33474591]
[1723861204623,2.6385,2599.7,2599.5,1.92283]
[1723861204837,2.6385,2599.7,2599.4,2.98608]
[1723861205028,1.92277,2599.6,2599.4,0.3492]
[1723861205432,1.92277,2599.6,2599.4,2.27208]
[1723861206128,2.63854,2599.7,2599.4,2.27208]
[1723861207126,2.63854,2599.7,2599.5,1.92281]
[1723861207328,0.00450377,2599.8,2599.5,3.8464]
[1723861207531,0.00450377,2599.8,2599.7,1.92269]
[1723861208230,0.00450377,2599.8,2599.6,0.7247]
[1723861208434,0.00450377,2599.8,2599.7,1.92269]
[1723861208735,0.00450377,2599.8,2599.6,0.7247]
[1723861208936,0.36080377,2599.8,2599.6,2.64741]
[1723861209132,0.73820377,2599.8,2599.6,2.64741]
[1723861210231,0.73820377,2599.8,2599.7,1.92269]
[1723861211433,0.36080377,2599.8,2599.7,1.92269]
[1723861212536,2.28343377,2599.8,2599.6,3.65466751]
[1723861212841,2.28343377,2599.8,2599.6,2.64742]
[1723861213437,2.28343377,2599.8,2599.5,1.00724751]
[1723861213438,0.36080377,2599.8,2599.5,1.00724751]
[1723861213641,2.63432,2599.7,2599.4,1.35644751]
[1723861213831,2.63432,2599.7,2599.4,3.27930751]
[1723861215039,2.63432,2599.7,2599.4,2.27206]
[1723861215243,2.63432,2599.7,2599.4,3.27930751]
[1723861215445,2.63432,2599.7,2599.4,2.27206]
[1723861215627,2.63432,2599.7,2599.4,3.27930751]
[1723861215835,2.63432,2599.7,2599.4,2.27206]
[1723861216842,2.63432,2599.7,2599.4,3.27930751]
[1723861217237,1.92277,2599.6,2599.4,2.27206]
[1723861217543,2.63434,2599.7,2599.5,1.92282]
[1723861218030,2.63434,2599.7,2599.4,3.27931751]
[1723861218233,0.7116,2599.7,2599.5,1.92282]
[1723861218437,2.63431,2599.7,2599.5,2.93006751]
[1723861218639,2.63431,2599.7,2599.5,1.92282]
[1723861219040,1.92279,2599.6,2599.4,3.27931751]
[1723861219240,1.92284,2599.5,2599.3,2.93018751]
[1723861219752,1.92284,2599.5,2599.2,8.31526751]
[1723861220038,0.3626,2599.4,2599.3,1.92299]
[1723861220840,0.3626,2599.4,2599.3,2.93023751]
[1723861221037,0.3626,2599.4,2599.3,1.92299]
[1723861221541,5.42365031,2599.4,2599.0,1.00724751]
[1723861221737,6.23892,2599.2,2598.9,3.65090724]